bitfinex-derivatives/quotes_SOLF0:USTF0_20241222
["timestamp","ask_amount","ask_price","bid_price","bid_amount"]
[1734862472915,2.6822,186.55,186.5,2.6828]
[1734862473105,11.45832139,186.59,186.45,1.5703]
[1734862473419,1.5799,186.58,186.46,2.76]
[1734862473572,1.5799,186.58,186.49,2.6829]
[1734862473726,2.6824,186.54,186.49,2.6829]
[1734862474811,2.6822,186.56,186.49,2.6829]
[1734862475008,1.5799,186.58,186.49,2.6829]
[1734862475510,2.6824,186.54,186.49,2.6829]
[1734862475711,1.5799,186.58,186.49,2.6829]
[1734862476120,2.6824,186.54,186.49,2.6829]
[1734862476814,2.6825,186.53,186.49,2.6829]
[1734862477212,2.6832,186.49,186.45,2.6836]
[1734862477407,8.69832139,186.5,186.4,58.48352792]
[1734862477709,8.69832139,186.47,186.4,58.48352792]
[1734862478010,1.6966,186.46,186.4,58.48352792]
[1734862478207,8.69832139,186.44,186.4,58.48352792]
[1734862478407,8.69832139,186.44,186.35,58.48352792]
[1734862478408,2.6847,186.38,186.35,58.48352792]
[1734862478611,1.6909,186.43,186.35,58.48352792]
[1734862479115,2.6844,186.4,186.35,58.48352792]
[1734862479515,2.6844,186.4,186.33,2.76]
[1734862479816,2.6844,186.4,186.34,2.6852]
[1734862480315,2.6845,186.39,186.34,2.6852]
[1734862480612,13.93990834,186.42,186.33,2.76]
[1734862480808,2.6848,186.37,186.33,2.76]
[1734862481011,2.6848,186.37,186.31,2.76]
[1734862481512,2.6848,186.37,186.31,5.4456]
[1734862481719,2.6848,186.37,186.26,13.93990834]
[1734862481720,13.93990834,186.39,186.26,13.93990834]
[1734862482019,1.7157,186.38,186.27,2.76]
[1734862482215,2.6854,186.34,186.27,5.4461]
[1734862482417,2.6854,186.34,186.27,2.6861]
[1734862482618,2.6854,186.34,186.27,5.4461]
[1734862482918,1.7157,186.38,186.27,2.76]
[1734862483108,1.7157,186.38,186.26,5.4464]
[1734862483311,2.6855,186.33,186.26,5.4464]
[1734862483816,1.7157,186.38,186.26,5.4464]
[1734862484013,13.93990834,186.36,186.26,2.76]
[1734862484721,2.6856,186.32,186.26,5.4463]
[1734862485719,1.6852,186.34,186.3,2.6858]
[1734862486319,2.76,186.4,186.33,2.6853]
[1734862486525,2.76,186.4,186.31,2.76]
[1734862486819,2.6848,186.37,186.32,2.6855]
[1734862490029,3.3295,186.39,186.34,2.6852]
[1734862490919,1.6186,186.39,186.34,2.6852]
[1734862491523,1.6186,186.39,186.31,2.76]
[1734862491726,1.6186,186.39,186.31,5.4456]
[1734862492431,2.6848,186.37,186.31,5.4456]
[1734862493419,13.93990834,186.38,186.23,13.93990834]
[1734862493728,18.35710834,186.38,186.24,2.76]
[1734862493931,2.6852,186.34,186.29,2.6859]
[1734862496228,18.35710834,186.38,186.2,15.65640834]
[1734862496533,13.93990834,186.35,186.21,2.76]
[1734862497130,13.93990834,186.35,186.26,2.6864]
[1734862497131,2.6857,186.31,186.26,2.6864]
[1734862499826,2.6858,186.3,186.26,2.6864]
[1734862500140,2.76,186.33,186.24,2.76]
[1734862500333,1.6951,186.32,186.24,5.4467]
[1734862500526,1.6951,186.32,186.2,1.7165]
[1734862500527,15.63500834,186.32,186.2,1.7165]
[1734862500725,1.6003,186.31,186.21,2.76]
[1734862501331,1.6003,186.31,186.29,2.6859]
[1734862501533,1.6951,186.37,186.26,2.76]
[1734862501732,1.6951,186.37,186.27,2.76]
[1734862501930,1.6572,186.38,186.34,2.6852]
[1734862502325,1.6572,186.38,186.27,2.76]
[1734862503437,1.6572,186.38,186.34,2.6852]
[1734862503635,2.6845,186.39,186.32,2.76]
[1734862503838,2.6845,186.39,186.33,2.76]
[1734862504137,13.93990834,186.57,186.33,2.76]
[1734862504331,2.76,186.48,186.33,2.76]
[1734862504539,2.76,186.48,186.34,1.6949]
[1734862504736,2.6834,186.47,186.41,2.6842]
[1734862505035,2.76,186.48,186.38,2.76]
[1734862505232,5.4432,186.48,186.42,2.6841]
[1734862505636,4.2897,186.44,186.38,2.76]
[1734862505844,13.93990834,186.43,186.34,2.76]
[1734862506236,2.6847,186.38,186.32,2.6854]
[1734862506431,13.93990834,186.4,186.3,2.76]
[1734862506941,13.93990834,186.37,186.26,58.48352792]
[1734862507142,1.6249,186.36,186.26,58.48352792]
[1734862507338,2.6855,186.32,186.27,2.6862]
[1734862508345,2.6855,186.32,186.2,13.93990834]
[1734862508541,2.6855,186.32,186.21,2.76]
[1734862508939,2.6855,186.32,186.25,2.6864]
[1734862509243,1.6249,186.36,186.21,2.76]
[1734862509441,1.6249,186.36,186.31,2.6856]
[1734862509643,1.6249,186.36,186.28,2.76]
[1734862510039,78.09390623,186.44,186.28,2.76]
[1734862510040,13.93990834,186.42,186.28,2.76]
[1734862510236,1.7027,186.43,186.29,15.64980834]
[1734862510638,1.7027,186.43,186.29,1.7099]
[1734862510834,2.6845,186.4,186.29,1.7099]
[1734862511236,1.7027,186.43,186.29,1.7099]
[1734862511448,2.6845,186.4,186.29,1.7099]
[1734862511747,1.7027,186.43,186.29,1.7099]
[1734862512144,1.7027,186.43,186.29,24.36199103]
[1734862513446,1.7027,186.43,186.29,82.84551895]
[1734862513848,2.6842,186.41,186.33,2.6853]
[1734862514146,2.6842,186.41,186.33,2.76]
[1734862514945,1.7027,186.43,186.33,2.76]
[1734862515145,2.6845,186.39,186.33,2.76]
[1734862515351,22.65209103,186.42,186.33,2.76]
[1734862515549,2.6852,186.35,186.3,2.76]
[1734862516045,22.65209103,186.36,186.28,58.48352792]
[1734862516046,2.6854,186.33,186.28,58.48352792]
[1734862516450,1.592,186.34,186.28,61.16952792]
[1734862516650,1.592,186.34,186.26,2.76]
[1734862516851,2.6847,186.38,186.26,2.76]
[1734862517045,2.76,186.39,186.26,25.41209103]
[1734862517351,5.4446,186.39,186.27,1.5631]
[1734862517652,5.4446,186.39,186.33,2.6853]
[1734862519552,2.76,186.39,186.31,2.76]
[1734862519749,25.41209103,186.39,186.27,1.5631]
[1734862519945,25.41209103,186.39,186.28,2.76]
[1734862520142,2.6852,186.35,186.29,2.6859]
[1734862520352,25.41209103,186.39,186.28,2.76]
[1734862520848,2.76,186.43,186.37,2.6847]
[1734862521649,2.6842,186.42,186.37,2.6847]
[1734862523346,2.684,186.43,186.39,2.6844]
[1734862523546,2.684,186.43,186.3,1.6904]
[1734862523547,22.65209103,186.48,186.38,2.76]
[1734862523943,22.65209103,186.48,186.4,2.6843]
[1734862524143,25.41209103,186.48,186.38,2.76]
[1734862524348,2.6844,186.4,186.38,2.76]
[1734862524547,22.65209103,186.44,186.3,1.6904]
[1734862524748,22.65209103,186.41,186.31,2.76]
[1734862524952,2.6847,186.38,186.34,2.6851]
[1734862525654,2.6845,186.39,186.34,2.6851]
[1734862525849,2.6845,186.39,186.35,2.6851]
[1734862527357,22.65209103,186.38,186.26,111.74310945]
[1734862527545,22.65209103,186.38,186.27,2.76]
[1734862527952,2.6852,186.34,186.3,2.6857]
[1734862529152,22.65209103,186.38,186.27,2.76]
[1734862530158,2.76,186.37,186.26,111.74310945]
[1734862530352,2.76,186.37,186.27,2.76]
[1734862530559,2.6855,186.33,186.28,2.686]
[1734862531358,2.76,186.37,186.28,2.686]
[1734862531564,2.6855,186.32,186.28,2.686]
[1734862532554,22.65209103,186.32,186.22,2.76]
[1734862532761,5.0082,186.31,186.22,2.76]
[1734862533555,2.6861,186.29,186.22,5.4468]
[1734862533860,5.0082,186.31,186.22,2.76]
[1734862534656,2.6863,186.27,186.22,2.76]
[1734862535258,2.6863,186.27,186.22,5.4469]
[1734862536257,2.6863,186.27,186.22,2.6869]
[1734862537559,5.0082,186.31,186.21,2.76]
[1734862538460,1.6059,186.31,186.21,2.76]
[1734862538760,4.4199,186.38,186.22,13.95973027]
[1734862538962,7.8724,186.38,186.22,13.95973027]
[1734862539664,2.6852,186.35,186.22,13.95973027]
[1734862539965,7.8724,186.38,186.22,13.95973027]
[1734862540275,7.8724,186.38,186.3,2.6857]
[1734862540276,2.685,186.36,186.3,2.6857]
[1734862541361,7.8724,186.38,186.29,2.76]
[1734862541362,5.1124,186.38,186.29,2.76]
[1734862541568,1.7351,186.38,186.29,2.76]
[1734862541768,13.95973027,186.43,186.29,2.76]
[1734862542073,2.6842,186.41,186.35,2.685]
[1734862542371,15.68243027,186.43,186.35,2.685]
[1734862542372,15.68243027,186.43,186.35,2.76]
[1734862542673,15.68243027,186.43,186.37,2.6847]
[1734862543466,2.6841,186.42,186.37,2.6847]
[1734862544266,2.6847,186.38,186.34,2.76]
[1734862545775,2.6848,186.37,186.34,2.76]
[1734862546871,13.95973027,186.4,186.34,2.76]
[1734862547074,1.7227,186.43,186.34,2.76]
[1734862547273,1.7227,186.43,186.38,2.6846]
[1734862547567,4.4068,186.43,186.38,2.6846]
[1734862547775,1.7227,186.43,186.34,2.76]
[1734862549070,2.6844,186.4,186.35,2.685]
[1734862549271,2.6844,186.4,186.34,2.76]
[1734862549681,13.95973027,186.4,186.34,2.76]
[1734862550281,2.6845,186.39,186.34,2.76]
[1734862551581,2.6845,186.39,186.35,2.6851]
[1734862552185,2.6843,186.41,186.37,2.6848]
[1734862552375,3.3373,186.47,186.34,2.76]
[1734862552578,3.3373,186.47,186.34,16.71973027]
[1734862552774,3.3373,186.47,186.35,1.6702]
[1734862553884,13.95973027,186.46,186.34,2.76]
[1734862554081,2.76,186.45,186.34,2.76]
[1734862554282,2.6841,186.42,186.37,2.6848]
[1734862554587,2.76,186.45,186.34,2.76]
[1734862555183,2.6843,186.41,186.36,2.6849]
[1734862555682,2.6846,186.39,186.34,5.4451]
[1734862556180,13.95973027,186.43,186.34,5.4451]
[1734862556885,2.6846,186.39,186.34,5.4451]
[1734862558286,2.6846,186.39,186.34,2.76]
[1734862558485,2.6846,186.39,186.35,2.685]
[1734862558988,3.3373,186.47,186.34,2.76]
[1734862559579,3.3373,186.47,186.38,2.6845]
[1734862559580,2.684,186.43,186.38,2.6845]
[1734862560386,3.3373,186.47,186.34,2.76]
[1734862560577,2.92892292,186.5,186.34,16.71973027]
[1734862560981,13.95973027,186.48,186.34,16.71973027]
[1734862561287,20.00773027,186.48,186.34,2.76]
[1734862562286,2.6837,186.45,186.4,2.6843]
[1734862562481,20.00773027,186.48,186.39,2.76]
[1734862562482,17.24773027,186.48,186.39,2.76]
[1734862562683,3.288,186.48,186.39,2.76]
[1734862562883,2.6825,186.53,186.48,2.6832]
[1734862564384,4.9758,186.56,186.47,2.76]
[1734862564596,29.84214189,186.62,186.47,2.76]
[1734862564888,2.6815,186.6,186.55,2.6822]
[1734862565085,1.689,186.62,186.54,2.76]
[1734862566091,2.6817,186.59,186.55,2.6822]
[1734862566690,13.95973027,186.6,186.48,1.6742]
[1734862566895,13.95973027,186.57,186.4,1.5623]
[1734862567086,13.95973027,186.57,186.41,2.76]
[1734862567283,2.6824,186.54,186.41,2.76]
[1734862567489,3.2379,186.56,186.42,2.76]
[1734862567985,22.63199753,186.54,186.42,2.76]
[1734862568184,1.6646,186.53,186.42,2.76]
[1734862568382,1.6646,186.53,186.38,22.63199753]
[1734862568582,22.63199753,186.51,186.41,2.76]
[1734862568786,22.63199753,186.51,186.4,2.76]
[1734862569090,22.63199753,186.48,186.4,2.76]
[1734862569387,2.76,186.49,186.4,2.76]
[1734862569587,27.05659753,186.53,186.4,2.76]
[1734862570183,2.6831,186.49,186.45,2.6836]
[1734862570384,27.05659753,186.53,186.4,2.76]
[1734862570688,2.6837,186.45,186.41,2.6841]
[1734862571086,2.76,186.48,186.39,2.76]
[1734862571290,2.6837,186.45,186.39,2.76]
[1734862571489,3.1838,186.47,186.38,2.6846]
[1734862571890,2.6835,186.46,186.4,2.6844]
[1734862572288,2.6835,186.46,186.37,2.76]
[1734862572484,3.1838,186.47,186.37,2.76]
[1734862572682,2.76,186.52,186.38,22.63199753]
[1734862572884,1.6646,186.53,186.38,22.63199753]
[1734862573091,2.6828,186.52,186.47,2.6833]
[1734862573596,1.6646,186.53,186.45,2.76]
[1734862574190,1.6605,186.52,186.45,2.76]
[1734862574495,1.6605,186.52,186.41,2.76]
[1734862574795,2.6833,186.48,186.4,5.4443]
[1734862574988,22.63199753,186.51,186.4,2.76]
[1734862575391,2.6836,186.46,186.4,2.76]
[1734862575587,22.63199753,186.51,186.4,2.76]
[1734862575790,1.6605,186.52,186.4,2.76]
[1734862576189,1.6605,186.52,186.41,24.20609753]
[1734862576895,4.3433,186.52,186.47,2.6833]
[1734862577094,1.6646,186.53,186.46,2.76]
[1734862577397,2.6826,186.52,186.47,2.6832]
[1734862577596,1.6646,186.53,186.46,2.76]
[1734862577892,2.6831,186.5,186.46,2.76]
[1734862578101,4.4246,186.53,186.42,2.76]
[1734862578589,22.63199753,186.51,186.4,2.76]
[1734862579494,22.63199753,186.51,186.41,2.6842]
[1734862579698,22.63199753,186.51,186.4,2.76]
[1734862580394,4.4246,186.53,186.4,2.76]
[1734862580598,1.6646,186.53,186.41,22.63199753]
[1734862580794,4.3472,186.53,186.44,2.6837]
[1734862580994,4.3472,186.53,186.45,2.76]
[1734862581189,1.6646,186.53,186.45,2.76]
[1734862581699,1.6646,186.53,186.49,2.683]
[1734862581899,1.6646,186.53,186.45,2.76]
[1734862582194,1.6276,186.57,186.47,22.63199753]
[1734862583995,3.2376,186.62,186.47,22.63199753]
[1734862584293,4.9277,186.62,186.47,22.63199753]
[1734862585294,22.63199753,186.6,186.48,2.76]
[1734862585695,2.6818,186.58,186.52,2.6825]
[1734862586595,22.63199753,186.6,186.5,2.6829]
[1734862586795,4.9277,186.62,186.49,2.76]
[1734862586999,2.6818,186.58,186.49,2.76]
[1734862588195,2.6816,186.6,186.49,2.76]
[1734862588394,2.6816,186.6,186.55,2.6821]
[1734862589507,2.6817,186.59,186.54,2.6823]
[1734862590201,4.9277,186.62,186.49,2.76]
[1734862590202,2.6818,186.58,186.52,2.6825]
[1734862591002,2.6818,186.58,186.53,2.6825]
[1734862591702,2.6819,186.57,186.52,2.6826]
[1734862592197,2.6818,186.58,186.53,2.6825]
[1734862592501,4.9277,186.62,186.49,2.76]
[1734862592801,2.6818,186.59,186.52,2.6826]
[1734862593003,4.9277,186.62,186.49,2.76]
[1734862593602,22.63199753,186.6,186.46,1.6992]
[1734862593906,4.9277,186.62,186.46,2.76]
[1734862593907,22.63199753,186.57,186.46,2.76]
[1734862594202,2.683,186.5,186.46,2.76]
[1734862594799,2.6831,186.49,186.38,159.43655278]
[1734862595104,5.0084,186.54,186.41,2.76]
[1734862595291,5.0084,186.54,186.49,2.6831]
[1734862595292,7.6909,186.54,186.49,2.6831]
[1734862595500,5.0084,186.54,186.49,2.6831]
[1734862595694,5.0084,186.54,186.47,2.76]
[1734862595902,2.6829,186.51,186.47,2.76]
[1734862596803,2.6829,186.51,186.47,5.4433]
[1734862597003,2.6826,186.53,186.47,2.76]
[1734862597503,2.6828,186.51,186.47,5.4432]
[1734862598404,2.683,186.5,186.47,2.76]
[1734862598608,2.76,186.53,186.42,2.76]
[1734862599206,2.6827,186.52,186.42,2.76]
[1734862599710,2.6827,186.52,186.48,2.6832]
[1734862600202,2.6827,186.52,186.42,2.76]
[1734862600203,5.0084,186.54,186.49,2.6829]
[1734862600397,5.0084,186.54,186.43,22.62849648]
[1734862600398,5.0084,186.54,186.48,2.76]
[1734862600606,1.5716,186.54,186.48,2.76]
[1734862600800,4.254,186.54,186.5,2.6829]
[1734862601309,4.254,186.54,186.49,2.6831]
[1734862601607,1.5716,186.54,186.48,2.76]
[1734862601805,1.5716,186.54,186.46,2.6834]
[1734862602209,2.6829,186.51,186.44,2.76]
[1734862602511,2.6829,186.51,186.46,2.6834]
[1734862602806,2.6829,186.51,186.44,2.76]
[1734862603201,1.5716,186.54,186.44,2.76]
[1734862603402,2.6827,186.52,186.44,2.76]
[1734862604705,1.5716,186.54,186.49,2.6831]
[1734862604910,1.5716,186.54,186.44,2.76]
[1734862605109,2.6826,186.52,186.47,2.6834]
[1734862605817,4.254,186.54,186.49,2.683]
[1734862606212,4.254,186.54,186.5,2.6829]
[1734862607213,1.5716,186.54,186.44,2.76]
[1734862607415,2.6826,186.53,186.44,2.76]
[1734862607612,1.5716,186.54,186.44,2.76]
[1734862607811,1.5716,186.54,186.4,22.62849648]
[1734862608020,4.3316,186.54,186.41,2.76]
[1734862608612,2.6831,186.5,186.45,2.6835]
[1734862609018,4.3316,186.54,186.41,2.76]
[1734862610016,2.683,186.5,186.44,2.6837]
[1734862610217,2.683,186.5,186.41,2.76]
[1734862610817,2.6828,186.51,186.41,2.76]
[1734862611015,1.5716,186.54,186.41,2.76]
[1734862611514,4.254,186.54,186.49,2.6829]
[1734862611914,1.5716,186.54,186.49,2.6829]
[1734862612111,2.6826,186.53,186.49,2.6829]
[1734862612615,1.5716,186.54,186.49,2.6829]
[1734862613411,1.5716,186.54,186.48,2.6832]
[1734862613614,1.5716,186.54,186.47,2.76]
[1734862614223,2.6829,186.51,186.47,5.4433]
[1734862614925,2.6835,186.47,186.43,2.6838]
[1734862615120,22.62849648,186.52,186.43,2.6838]
[1734862615326,4.3391,186.51,186.39,2.76]
[1734862615627,4.3391,186.51,186.41,2.6842]
[1734862615825,1.6956,186.5,186.41,2.6842]
[1734862616030,2.684,186.43,186.38,58.48352792]
[1734862616527,2.684,186.43,186.33,58.48352792]
[1734862617025,2.684,186.43,186.34,2.76]
[1734862617223,22.62849648,186.49,186.34,2.76]
[1734862617429,2.76,186.45,186.34,2.76]
[1734862617629,3.341,186.44,186.34,2.76]
[1734862617831,2.6848,186.37,186.32,2.76]
[1734862618236,1.7205,186.42,186.32,2.76]
[1734862619235,3.341,186.44,186.32,16.7051945]
[1734862620237,3.341,186.44,186.33,2.76]
[1734862621239,3.341,186.44,186.35,13.9451945]
[1734862621240,1.7269,186.44,186.35,13.9451945]
[1734862622342,4.4107,186.44,186.39,2.6844]
[1734862622536,1.7269,186.44,186.38,2.76]
[1734862623330,3.3483,186.49,186.38,2.76]
[1734862623536,3.3483,186.49,186.48,2.6832]
[1734862623737,3.3483,186.49,186.38,16.7051945]
[1734862623937,1.6902,186.56,186.36,1.5741]
[1734862623938,1.6902,186.56,186.41,13.9451945]
[1734862624136,2.6826,186.53,186.41,13.9451945]
[1734862624442,1.6902,186.56,186.44,13.9451945]
[1734862624736,1.6902,186.56,186.48,2.6832]
[1734862624935,1.6902,186.56,186.45,4.3341]
[1734862625332,1.6902,186.56,186.51,2.6827]
[1734862625538,1.6902,186.56,186.45,4.3341]
[1734862625539,3.3456,186.58,186.5,2.76]
[1734862625840,1.6902,186.62,186.51,2.76]
[1734862626038,1.6902,186.62,186.54,2.6823]
[1734862626237,2.6816,186.59,186.51,2.76]
[1734862626641,2.6816,186.59,186.53,2.6824]
[1734862627541,2.6816,186.59,186.51,2.76]
[1734862627542,1.6902,186.62,186.52,2.6826]
[1734862628241,1.6902,186.62,186.51,2.76]
[1734862628941,2.6817,186.59,186.54,2.6823]
[1734862629240,2.6815,186.61,186.56,2.6821]
[1734862629537,1.6902,186.62,186.51,2.76]
[1734862630037,16.7051945,186.67,186.51,2.76]
[1734862630238,7.8462,186.69,186.53,13.9451945]
[1734862630542,2.6809,186.65,186.59,2.6815]
[1734862630841,7.8462,186.69,186.59,2.76]
[1734862631043,5.0862,186.69,186.59,2.76]
[1734862631236,1.6635,186.69,186.59,2.76]
[1734862631842,4.3438,186.69,186.63,2.681]
[1734862633245,1.6635,186.69,186.59,25.34812243]
[1734862633439,22.58812243,186.73,186.59,25.34812243]
[1734862633836,2.6799,186.71,186.65,2.6807]
[1734862634140,22.58812243,186.73,186.54,1.6627]
[1734862634141,22.58812243,186.73,186.64,2.76]
[1734862634345,2.68,186.71,186.64,2.76]
[1734862634541,1.7263,186.74,186.64,2.76]
[1734862634739,24.31442243,186.74,186.64,2.76]
[1734862635544,2.6798,186.72,186.66,2.6806]
[1734862636140,1.6802,186.76,186.71,2.6798]
[1734862636539,1.6802,186.76,186.69,2.76]
[1734862636739,1.6802,186.76,186.71,2.6799]
[1734862637443,1.5796,186.79,186.69,2.76]
[1734862637444,22.58812243,186.83,186.69,2.76]
[1734862637636,4.8821,186.81,186.69,2.76]
[1734862638039,2.6786,186.8,186.75,2.6793]
[1734862638839,7.5606,186.81,186.76,2.6791]
[1734862639044,4.8821,186.81,186.74,2.76]
[1734862639443,22.58812243,186.83,186.74,2.76]
[1734862639646,4.9479,186.84,186.74,2.76]
[1734862641649,2.6785,186.81,186.76,2.6792]
[1734862641851,22.58812243,186.83,186.73,2.76]
[1734862642046,2.6791,186.77,186.73,2.76]
[1734862642247,22.58812243,186.83,186.73,2.76]
[1734862642559,22.58812243,186.8,186.73,2.76]
[1734862643444,22.58812243,186.77,186.68,2.76]
[1734862643651,2.6802,186.7,186.68,2.76]
[1734862643851,2.76,186.75,186.64,2.76]
[1734862644054,5.9757,186.75,186.64,2.76]
[1734862644348,2.6802,186.69,186.64,2.76]
[1734862644551,22.58812243,186.74,186.62,2.76]
[1734862644851,22.58812243,186.71,186.54,1.6757]
[1734862645052,22.58812243,186.68,186.55,26.77153]
[1734862645257,25.34812243,186.68,186.55,24.01153]
[1734862645553,22.58812243,186.62,186.55,24.01153]
[1734862645852,2.6821,186.56,186.55,24.01153]
[1734862646248,2.6821,186.56,186.55,2.27253]
[1734862646456,22.58812243,186.56,186.46,2.76]
[1734862646756,22.58812243,186.56,186.42,2.76]
[1734862646944,2.6833,186.48,186.39,2.76]
[1734862647143,22.58812243,186.53,186.38,82.66835035]
[1734862647144,2.76,186.51,186.38,82.66835035]
[1734862647345,2.76,186.51,186.39,2.76]
[1734862648054,2.76,186.51,186.4,1.6073]
[1734862648257,2.76,186.51,186.45,2.6836]
[1734862648456,2.6825,186.54,186.44,2.76]
[1734862648851,2.6825,186.53,186.44,5.4437]
[1734862649048,2.76,186.55,186.44,2.76]
[1734862649252,2.76,186.57,186.44,2.76]
[1734862649556,2.76,186.57,186.48,2.6832]
[1734862649954,25.05944174,186.59,186.49,2.76]
[1734862650259,2.76,186.64,186.5,25.34812243]
[1734862650451,2.76,186.64,186.53,22.58812243]
[1734862652052,5.4409,186.64,186.57,2.6819]
[1734862652258,5.4409,186.64,186.57,2.76]
[1734862652259,2.76,186.64,186.57,2.76]
[1734862652452,5.4409,186.64,186.57,2.76]
[1734862653157,2.6809,186.64,186.58,2.6818]
[1734862653353,2.6808,186.65,186.57,2.76]
[1734862654453,2.6805,186.67,186.57,2.76]
[1734862654655,2.76,186.7,186.57,2.76]
[1734862655060,2.76,186.7,186.6,2.6814]
[1734862655061,2.6806,186.67,186.6,2.6814]
[1734862655367,2.76,186.71,186.57,2.76]
[1734862655651,2.76,186.73,186.57,2.76]
[1734862656255,2.76,186.73,186.64,2.6808]
[1734862656256,2.6799,186.71,186.64,2.6808]
[1734862656455,2.76,186.73,186.62,2.76]
[1734862656758,22.58812243,186.72,186.62,2.76]
[1734862656957,2.6806,186.67,186.62,2.76]
[1734862658660,2.6807,186.66,186.62,2.76]
[1734862658961,2.6807,186.66,186.61,2.6813]
[1734862659258,2.76,186.68,186.55,2.76]
[1734862659454,2.76,186.67,186.55,2.76]
[1734862659655,22.58812243,186.69,186.55,2.76]
[1734862659953,2.76,186.7,186.55,25.34812243]
[1734862661454,2.6808,186.65,186.59,2.6815]
[1734862661655,22.58812243,186.69,186.52,1.6073]
[1734862661860,22.58812243,186.69,186.53,2.76]
[1734862662457,22.58812243,186.69,186.57,2.6819]
[1734862662857,22.58812243,186.69,186.53,25.34812243]
[1734862663362,2.76,186.7,186.56,22.58812243]
[1734862663762,2.6805,186.67,186.56,22.58812243]
[1734862663964,2.76,186.7,186.56,22.58812243]
[1734862664166,2.6804,186.68,186.63,2.681]
[1734862665455,2.6805,186.67,186.62,2.6812]
[1734862667061,2.6806,186.66,186.61,5.4413]
[1734862667663,2.6808,186.65,186.61,2.76]
[1734862667964,25.34812243,186.72,186.61,2.76]
[1734862669062,22.58812243,186.72,186.61,2.76]
[1734862669465,2.76,186.73,186.61,2.76]
[1734862670368,2.6805,186.68,186.63,2.6809]
[1734862670568,2.76,186.73,186.61,2.76]
[1734862670569,22.58812243,186.72,186.61,2.76]
[1734862670770,2.6802,186.69,186.61,2.76]
[1734862671063,22.58812243,186.72,186.61,2.76]
[1734862671669,22.58812243,186.69,186.59,2.6816]
[1734862671864,2.76,186.68,186.53,22.58812243]
[1734862672073,2.76,186.68,186.56,2.76]
[1734862672074,2.6813,186.62,186.56,2.76]
[1734862672368,2.76,186.68,186.57,2.6818]
[1734862673274,2.6813,186.62,186.57,2.6818]
[1734862673669,2.76,186.68,186.57,2.6818]
[1734862674069,2.6815,186.61,186.56,2.76]
[1734862674276,2.76,186.68,186.56,2.6821]
[1734862676173,2.6815,186.61,186.56,2.6821]
[1734862676364,2.76,186.68,186.54,2.76]
[1734862676864,2.6809,186.64,186.54,2.76]
[1734862677370,2.76,186.68,186.56,22.58812243]
[1734862677574,2.76,186.68,186.63,2.681]
[1734862678174,2.76,186.71,186.64,2.6809]
[1734862678371,2.76,186.72,186.59,25.34812243]
[1734862678571,5.078,186.74,186.6,3.2602]
[1734862678769,7.838,186.74,186.6,3.2602]
[1734862678969,2.6802,186.7,186.64,2.6808]
[1734862679171,7.838,186.74,186.61,1.6308]
[1734862679772,2.6802,186.7,186.65,2.6807]
[1734862680074,7.838,186.74,186.65,2.6807]
[1734862680373,7.838,186.74,186.66,2.6806]
[1734862681073,2.6802,186.69,186.61,1.6308]
[1734862681672,22.58812243,186.72,186.61,1.6308]
[1734862682170,22.58812243,186.72,186.6,1.5632]